[Event "AUT Bundesliga Women 2021-22"]
[Site "Austria"]
[Date "2022.03.26"]
[Round "6.1"]
[White "Richterova, Natasa"]
[Black "Brunello, Marina"]
[Result "1-0"]
[ECO "D45"]
[WhiteElo "2162"]
[BlackElo "2349"]
[Annotator "ChessBase"]
[PlyCount "119"]
[EventDate "2021.11.06"]
[EventType "team-tourn"]
[EventCountry "AUT"]
[SourceTitle "playchess.com"]
[Source "ChessBase"]
[SourceQuality "1"]
[TimeControl "40/5400+30:1800+30"]

1. d4 {[%emt 0:00:03]} d5 {[%emt 0:00:08]} 2. c4 {[%emt 0:00:05]} c6 {[%emt 0:00:02]} 3. Nf3 {[%emt 0:00:06]} Nf6 {[%emt 0:00:05]} 4. Nc3 {[%emt 0:00:05]} e6 {[%emt 0:00:07]} 5. e3 {[%emt 0:00:04]} Nbd7 {[%emt 0:00:42]} 6. Qc2 {[%emt 0:00:12]} Bd6 {[%emt 0:00:15]} 7. Bd3 {[%emt 0:00:16]} O-O {[%emt 0:01:42]} 8. O-O {[%emt 0:00:07]} dxc4 {[%emt 0:04:38]} 9. Bxc4 {[%emt 0:00:08]} b5 {[%emt 0:00:03]} 10. Bd3 {[%emt 0:04:04]} a6 {[%emt 0:00:33]} 11. Ne4 {[%emt 0:04:27]} Nxe4 {[%emt 0:04:18]} 12. Bxe4 {[%emt 0:00:03]} Nf6 {[%emt 0:00:04]} 13. Bd3 {[%emt 0:15:12]} c5 {[%emt 0:13:10]} 14. dxc5 {[%emt 0:01:39]} Bxc5 {[%emt 0:00:06]} 15. Bxh7+ {[%emt 0:09:41]} Nxh7 {[%emt 0:00:05]} 16. Qxc5 {[%emt 0:00:10]} Bb7 {[%emt 0:00:03]} 17. Nd4 {[%emt 0:05:08]} Rc8 {[%emt 0:03:35]} 18. Qe5 {[%emt 0:00:50]} Qb6 {[%emt 0:05:57]} 19. f3 {[%emt 0:05:50]} Rfd8 {[%emt 0:06:12]} 20. Qg3 {[%emt 0:04:22]} Rd5 {[%emt 0:13:17]} 21. Qf2 {[%emt 0:01:05]} Nf6 {[%emt 0:04:58]} 22. Bd2 {[%emt 0:27:47]} Rd7 {[%emt 0:07:13]} 23. Rac1 {[%emt 0:00:39]} Rcd8 {[%emt 0:00:14]} 24. Nb3 {[%emt 0:00:22]} b4 {[%emt 0:02:31]} 25. e4 {[%emt 0:01:36]} Qxf2+ {[%emt 0:04:54]} 26. Rxf2 {[%emt 0:00:17]} a5 {[%emt 0:00:10]} 27. Bg5 {[%emt 0:03:38]} Ba6 28. Rd2 {[%emt 0:04:16]} Rxd2 {[%emt 0:02:59]} 29. Nxd2 {[%emt 0:02:20]} a4 {[%emt 0:00:44]} 30. Rc6 {[%emt 0:02:50]} Bd3 {[%emt 0:01:07]} 31. Rb6 {[%emt 0:00:37]} Rc8 {[%emt 0:00:09]} 32. Rxb4 {[%emt 0:01:19]} Rc2 {[%emt 0:00:07]} 33. Rd4 {[%emt 0:05:04]} Bb5 {[%emt 0:00:16]} 34. Rb4 {[%emt 0:00:01]} Bd3 {[%emt 0:00:06]} 35. Rxa4 {[%emt 0:02:28]} Rxb2 {[%emt 0:00:07]} 36. Ra8+ {[%emt 0:00:24]} Kh7 {[%emt 0:00:04]} 37. Ra7 {[%emt 0:00:19]} Kg6 {[%emt 0:00:33]} 38. Be3 {[%emt 0:00:33]} Rc2 {[%emt 0:01:32]} 39. a4 {[%emt 0:00:15]} Ra2 {[%emt 0:00:04]} 40. a5 {[%emt 0:00:05]} Bb5 {[%emt 0:00:18]} 41. g4 {[%emt 0:05:21]} Nd7 {[%emt 0:01:59]} 42. f4 {[%emt 0:22:00]} Nf6 {[%emt 0:00:58]} 43. h3 {[%emt 0:03:07]} Bd3 {[%emt 0:01:44]} 44. f5+ {[%emt 0:01:04]} Kh7 {[%emt 0:01:09]} 45. Rxf7 {[%emt 0:00:27]} Rxa5 {[%emt 0:00:47]} 46. fxe6 {[%emt 0:01:57]} Re5 {[%emt 0:01:08]} 47. Bd4 {[%emt 0:00:06]} Rxe6 {[%emt 0:00:19]} 48. Bxf6 {[%emt 0:00:09]} Rxf6 {[%emt 0:00:45]} 49. Rxf6 {[%emt 0:00:01]} gxf6 {[%emt 0:00:05]} 50. Kf2 {[%emt 0:00:09]} Kg6 {[%emt 0:00:12]} 51. Ke3 {[%emt 0:00:07]} Bc2 {[%emt 0:00:09]} 52. Kf4 {[%emt 0:00:04]} Bd3 {[%emt 0:00:09]} 53. h4 {[%emt 0:00:32]} Be2 {[%emt 0:00:05]} 54. Nf3 {[%emt 0:00:25]} Ba6 {[%emt 0:00:17]} 55. Nd4 {[%emt 0:01:31]} Bc8 {[%emt 0:01:17]} 56. Nf5 {[%emt 0:00:41]} Bd7 {[%emt 0:00:04]} 57. h5+ {[%emt 0:00:47]} Kf7 {[%emt 0:00:04]} 58. g5 {[%emt 0:00:09]} fxg5+ {[%emt 0:00:05]} 59. Kxg5 {[%emt 0:00:05]} Kg8 {[%emt 0:00:12]} 60. Kf6 {[%emt 0:00:23]} 1-0

[Event "AUT Bundesliga Women 2021-22"]
[Site "Austria"]
[Date "2022.03.26"]
[Round "6.2"]
[White "Klek, Hanna Marie"]
[Black "Batyte, Daiva"]
[Result "1-0"]
[ECO "E71"]
[WhiteElo "2314"]
[BlackElo "2105"]
[Annotator "ChessBase"]
[PlyCount "69"]
[EventDate "2021.11.06"]
[EventType "team-tourn"]
[EventCountry "AUT"]
[SourceTitle "playchess.com"]
[Source "ChessBase"]
[SourceQuality "1"]
[TimeControl "40/5400+30:1800+30"]

1. d4 {[%emt 0:00:03]} Nf6 {[%emt 0:00:05]} 2. c4 {[%emt 0:00:04]} g6 {[%emt 0:00:20]} 3. Nc3 {[%emt 0:00:07]} Bg7 {[%emt 0:00:06]} 4. e4 {[%emt 0:00:04]} d6 {[%emt 0:00:06]} 5. h3 {[%emt 0:00:09]} Nbd7 {[%emt 0:00:53]} 6. Be3 {[%emt 0:00:18]} c5 {[%emt 0:02:45]} 7. Nf3 {[%emt 0:01:14]} cxd4 {[%emt 0:06:02]} 8. Nxd4 {[%emt 0:00:07]} Nc5 {[%emt 0:02:47]} 9. f3 {[%emt 0:02:53]} Ne6 {[%emt 0:01:32]} 10. Be2 {[%emt 0:08:45]} Nh5 {[%emt 0:06:46]} 11. O-O {[%emt 0:01:27]} Ng3 {[%emt 0:03:33]} 12. Rf2 {[%emt 0:00:30]} O-O {[%emt 0:02:24]} 13. f4 {[%emt 0:06:32]} Nxd4 {[%emt 0:03:20]} 14. Bxd4 {[%emt 0:00:08]} f6 {[%emt 0:15:22]} 15. Bf3 {[%emt 0:05:08]} h5 {[%emt 0:04:58]} 16. Rd2 {[%emt 0:06:12]} Qa5 {[%emt 0:11:14]} 17. Bf2 {[%emt 0:04:32]} h4 {[%emt 0:00:50]} 18. Nd5 {[%emt 0:02:28]} e5 {[%emt 0:06:26]} 19. b4 {[%emt 0:02:59]} Qd8 {[%emt 0:01:53]} 20. c5 {[%emt 0:00:45]} Be6 {[%emt 0:00:59]} 21. cxd6 {[%emt 0:02:56]} Bxd5 {[%emt 0:02:40]} 22. Rxd5 {[%emt 0:00:14]} exf4 {[%emt 0:01:50]} 23. Rc1 {[%emt 0:01:20]} Re8 {[%emt 0:03:41]} 24. d7 {[%emt 0:00:53]} Rf8 {[%emt 0:01:39]} 25. Rdc5 {[%emt 0:00:55]} f5 {[%emt 0:04:39]} 26. exf5 {[%emt 0:01:01]} Nxf5 {[%emt 0:04:29]} 27. Rc8 {[%emt 0:00:31]} Rxc8 {[%emt 0:01:01]} 28. dxc8=Q {[%emt 0:00:08]} Qxc8 {[%emt 0:00:51]} 29. Rxc8 {[%emt 0:00:09]} Rxc8 {[%emt 0:00:05]} 30. Bxb7 {[%emt 0:00:17]} Rc3 {[%emt 0:00:51]} 31. Bxa7 {[%emt 0:00:24]} Ne3 {[%emt 0:01:25]} 32. Qd8+ {[%emt 0:00:17]} Kh7 {[%emt 0:00:13]} 33. Qxh4+ {[%emt 0:00:10]} Bh6 {[%emt 0:00:49]} 34. Qe7+ {[%emt 0:00:29]} Bg7 {[%emt 0:00:07]} 35. Qxg7+ {[%emt 0:00:07]} 1-0

[Event "AUT Bundesliga Women 2021-22"]
[Site "Austria"]
[Date "2022.03.26"]
[Round "6.3"]
[White "Mar, Karmen"]
[Black "Wunderl, Eva"]
[Result "1/2-1/2"]
[ECO "C54"]
[WhiteElo "2074"]
[BlackElo "1898"]
[Annotator "NA"]
[PlyCount "88"]
[EventDate "2021.11.06"]
[EventType "team-tourn"]
[EventCountry "AUT"]
[SourceTitle "playchess.com"]
[Source "ChessBase"]
[SourceQuality "1"]
[TimeControl "40/5400+30:1800+30"]

1. e4 {[%emt 0:00:10]} e5 {[%emt 0:00:14]} 2. Nf3 {[%emt 0:00:17]} Nc6 {[%emt 0:00:18]} 3. Bc4 {[%emt 0:00:10]} Bc5 {[%emt 0:00:13]} 4. c3 {[%emt 0:00:15]} Nf6 {[%emt 0:00:32]} 5. d3 {[%emt 0:00:06]} a6 {[%emt 0:00:14]} 6. O-O {[%emt 0:01:48]} Ba7 {[%emt 0:00:30]} 7. Re1 {[%emt 0:01:46]} d6 {[%emt 0:03:46]} 8. Nbd2 {[%emt 0:03:12]} O-O {[%emt 0:03:56]} 9. h3 {[%emt 0:07:54]} Na5 {[%emt 0:05:21]} 10. b4 {[%emt 0:08:33]} Nxc4 {[%emt 0:00:40]} 11. Nxc4 {[%emt 0:00:15]} h6 {[%emt 0:03:00]} 12. Be3 {[%emt 0:09:31]} Be6 {[%emt 0:06:44]} 13. Bxa7 {[%emt 0:12:26]} Bxc4 {[%emt 0:03:51]} 14. Be3 {[%emt 0:03:45]} Be6 {[%emt 0:00:07]} 15. Qc2 {[%emt 0:00:49]} c6 {[%emt 0:02:31]} 16. a4 {[%emt 0:06:43]} b5 {[%emt 0:06:37]} 17. Ra3 {[%emt 0:09:41]} a5 {[%emt 0:17:53]} 18. Rea1 {[%emt 0:05:44]} axb4 {[%emt 0:04:42]} 19. cxb4 {[%emt 0:00:02]} bxa4 {[%emt 0:09:21]} 20. Rxa4 {[%emt 0:07:05]} Rxa4 {[%emt 0:00:39]} 21. Rxa4 {[%emt 0:00:39]} Qb8 {[%emt 0:01:04]} 22. Qc3 {[%emt 0:01:47]} Bd7 {[%emt 0:04:14]} 23. Ra5 {[%emt 0:01:41]} Rc8 {[%emt 0:01:43]} 24. Nd2 {[%emt 0:03:23]} d5 {[%emt 0:02:34]} 25. Bc5 {[%emt 0:01:28]} Be6 {[%emt 0:01:50]} 26. Qa3 {[%emt 0:05:26]} Nd7 {[%emt 0:02:59]} 27. Nb3 {[%emt 0:02:35]} dxe4 {[%emt 0:02:36]} 28. dxe4 {[%emt 0:01:12]} Bxb3 {[%emt 0:01:19]} 29. Qxb3 {[%emt 0:00:43]} Nxc5 {[%emt 0:00:14]} 30. Rxc5 Qd6 {[%emt 0:03:04]} 31. Qc3 {[%emt 0:01:57]} Rb8 {[%emt 0:00:58]} 32. Rxc6 {[%emt 0:02:24]} Qxb4 {[%emt 0:02:41]} 33. Qxe5 {[%emt 0:00:33]} Rd8 {[%emt 0:03:22]} 34. Rc1 {[%emt 0:01:37]} Qa4 {[%emt 0:00:59]} 35. Re1 {[%emt 0:01:13]} Re8 {[%emt 0:00:54]} 36. Qf4 {[%emt 0:00:38]} Qb4 {[%emt 0:00:56]} 37. Qc1 {[%emt 0:00:48]} Qb7 {[%emt 0:01:59]} 38. Qc4 {[%emt 0:00:30]} Rc8 {[%emt 0:00:56]} 39. Qd3 {[%emt 0:00:34]} Qe7 {[%emt 0:00:33]} 40. Qd5 {[%emt 0:00:32]} Qb4 {[%emt 0:01:36]} 41. Rd1 {[%emt 0:14:07]} Re8 {[%emt 0:01:40]} 42. e5 {[%emt 0:01:18]} Qc3 {[%emt 0:01:31]} 43. Qd4 {[%emt 0:08:27]} Qxd4 {[%emt 0:00:39]} 44. Rxd4 {[%emt 0:00:01]} Rxe5 {[%emt 0:00:13]} 1/2-1/2

[Event "AUT Bundesliga Women 2021-22"]
[Site "Austria"]
[Date "2022.03.26"]
[Round "6.4"]
[White "Anker, Christin"]
[Black "Saler-Grafenberger, Elisabeth"]
[Result "1/2-1/2"]
[ECO "B07"]
[WhiteElo "1843"]
[BlackElo "1828"]
[Annotator "NA"]
[PlyCount "80"]
[EventDate "2021.11.06"]
[EventType "team-tourn"]
[EventCountry "AUT"]
[SourceTitle "playchess.com"]
[Source "ChessBase"]
[SourceQuality "1"]
[TimeControl "40/5400+30:1800+30"]

1. e4 {[%emt 0:00:03]} d6 {[%emt 0:00:07]} 2. d4 {[%emt 0:00:07]} Nf6 {[%emt 0:00:24]} 3. Nc3 {[%emt 0:00:12]} e5 {[%emt 0:00:43]} 4. dxe5 {[%emt 0:04:54]} dxe5 {[%emt 0:00:10]} 5. Qxd8+ {[%emt 0:00:08]} Kxd8 {[%emt 0:00:07]} 6. Nf3 {[%emt 0:09:08]} Bd6 {[%emt 0:01:47]} 7. Bc4 {[%emt 0:01:14]} Be6 {[%emt 0:04:03]} 8. Bxe6 {[%emt 0:01:48]} fxe6 {[%emt 0:00:08]} 9. Be3 {[%emt 0:06:28]} Nbd7 {[%emt 0:04:33]} 10. O-O-O {[%emt 0:01:36]} Ke7 {[%emt 0:02:48]} 11. a3 {[%emt 0:03:40]} a6 {[%emt 0:03:28]} 12. Nd2 {[%emt 0:11:14]} b5 {[%emt 0:22:04]} 13. f3 {[%emt 0:02:16]} Bc5 {[%emt 0:04:00]} 14. Bxc5+ {[%emt 0:08:44]} Nxc5 {[%emt 0:00:08]} 15. Nf1 {[%emt 0:05:21]} Rhd8 {[%emt 0:04:06]} 16. Ne3 {[%emt 0:00:30]} Rxd1+ {[%emt 0:05:01]} 17. Rxd1 {[%emt 0:00:09]} Rd8 {[%emt 0:02:35]} 18. Rxd8 {[%emt 0:00:27]} Kxd8 {[%emt 0:00:07]} 19. Kd2 {[%emt 0:04:27]} Ke7 {[%emt 0:00:48]} 20. Ncd1 {[%emt 0:00:50]} h5 {[%emt 0:05:30]} 21. b4 {[%emt 0:07:07]} Ncd7 {[%emt 0:04:19]} 22. c4 {[%emt 0:00:35]} c6 {[%emt 0:07:47]} 23. h4 {[%emt 0:02:54]} Nh7 {[%emt 0:02:21]} 24. c5 {[%emt 0:07:15]} g5 {[%emt 0:02:38]} 25. hxg5 {[%emt 0:00:14]} Nxg5 {[%emt 0:00:09]} 26. Ke2 {[%emt 0:01:49]} Kf6 {[%emt 0:02:30]} 27. Nf2 {[%emt 0:07:51]} Kg6 {[%emt 0:03:42]} 28. Nd3 {[%emt 0:00:46]} Kf6 {[%emt 0:00:51]} 29. Kf2 {[%emt 0:00:37]} Kg6 {[%emt 0:01:49]} 30. Kg3 {[%emt 0:01:39]} Nh7 {[%emt 0:02:45]} 31. Kh4 {[%emt 0:06:29]} Ng5 {[%emt 0:04:14]} 32. Nf1 {[%emt 0:00:51]} Nf7 {[%emt 0:00:57]} 33. Ng3 {[%emt 0:00:43]} Nf6 {[%emt 0:01:07]} 34. Ne2 {[%emt 0:01:07]} Kh6 {[%emt 0:02:33]} 35. Nc3 {[%emt 0:00:50]} Nd7 {[%emt 0:00:53]} 36. a4 {[%emt 0:01:06]} Nh8 {[%emt 0:03:31]} 37. axb5 {[%emt 0:00:21]} Ng6+ {[%emt 0:00:23]} 38. Kg3 {[%emt 0:00:13]} axb5 {[%emt 0:00:43]} 39. Ne2 {[%emt 0:00:51]} Kg7 {[%emt 0:01:59]} 40. Kf2 {[%emt 0:02:41]} Kf6 {[%emt 0:00:53]} 1/2-1/2

[Event "AUT Bundesliga Women 2021-22"]
[Site "Austria"]
[Date "2022.03.26"]
[Round "6.5"]
[White "Ragger, Anna-Christina"]
[Black "Heinemann, Josefine"]
[Result "1-0"]
[ECO "D02"]
[WhiteElo "2156"]
[BlackElo "2290"]
[Annotator "ChessBase"]
[PlyCount "59"]
[EventDate "2021.11.06"]
[EventType "team-tourn"]
[EventCountry "AUT"]
[SourceTitle "playchess.com"]
[Source "ChessBase"]
[SourceQuality "1"]
[TimeControl "40/5400+30:1800+30"]

1. d4 {[%emt 0:00:03]} Nf6 {[%emt 0:00:09]} 2. Nf3 {[%emt 0:00:05]} d5 {[%emt 0:00:13]} 3. Bf4 {[%emt 0:00:42]} c5 {[%emt 0:00:13]} 4. c3 {[%emt 0:03:41]} Nc6 {[%emt 0:02:50]} 5. Nbd2 {[%emt 0:07:39]} cxd4 {[%emt 0:01:21]} 6. cxd4 {[%emt 0:00:05]} Qb6 {[%emt 0:00:33]} 7. Qb3 {[%emt 0:00:18]} Nxd4 {[%emt 0:12:51]} 8. Nxd4 {[%emt 0:03:15]} Qxd4 {[%emt 0:01:25]} 9. e3 {[%emt 0:00:53]} Qb6 {[%emt 0:00:26]} 10. Bb5+ {[%emt 0:06:17]} Bd7 {[%emt 0:01:26]} 11. Bxd7+ {[%emt 0:03:14]} Kxd7 {[%emt 0:00:29]} 12. Rc1 {[%emt 0:07:27]} Qxb3 {[%emt 0:10:42]} 13. Rc7+ {[%emt 0:07:37]} Kd8 {[%emt 0:00:12]} 14. Nxb3 {[%emt 0:00:15]} Nd7 {[%emt 0:07:56]} 15. Rxb7 {[%emt 0:03:03]} e5 {[%emt 0:00:40]} 16. Bg3 {[%emt 0:00:24]} h5 {[%emt 0:03:36]} 17. f4 {[%emt 0:06:56]} Kc8 {[%emt 0:10:51]} 18. Rb5 {[%emt 0:03:38]} Nb6 {[%emt 0:02:36]} 19. fxe5 {[%emt 0:02:38]} h4 {[%emt 0:03:34]} 20. Bf2 {[%emt 0:03:38]} Rh6 {[%emt 0:01:17]} 21. e4 {[%emt 0:04:01]} dxe4 {[%emt 0:05:56]} 22. O-O {[%emt 0:03:08]} Kb7 {[%emt 0:11:56]} 23. Be3 {[%emt 0:05:59]} Rc6 {[%emt 0:00:58]} 24. a4 {[%emt 0:04:40]} Re6 {[%emt 0:07:44]} 25. Bc5 {[%emt 0:05:03]} Kc7 {[%emt 0:08:31]} 26. Rxf7+ {[%emt 0:02:02]} Nd7 {[%emt 0:00:03]} 27. Bxf8 {[%emt 0:01:56]} Rxf8 {[%emt 0:00:09]} 28. Rxd7+ {[%emt 0:01:21]} Kxd7 {[%emt 0:02:32]} 29. Nc5+ {[%emt 0:00:07]} Ke7 {[%emt 0:00:07]} 30. Rb7+ {[%emt 0:00:08]} 1-0

[Event "AUT Bundesliga Women 2021-22"]
[Site "Austria"]
[Date "2022.03.26"]
[Round "6.6"]
[White "Imnadze, Nato"]
[Black "Berke, Ana"]
[Result "1-0"]
[ECO "B24"]
[WhiteElo "2238"]
[BlackElo "2140"]
[Annotator "ChessBase"]
[PlyCount "55"]
[EventDate "2021.11.06"]
[EventType "team-tourn"]
[EventCountry "AUT"]
[SourceTitle "playchess.com"]
[Source "ChessBase"]
[SourceQuality "1"]
[TimeControl "40/5400+30:1800+30"]

1. e4 {[%emt 0:00:04]} c5 {[%emt 0:00:27]} 2. Nc3 {[%emt 0:00:28]} Nc6 {[%emt 0:00:07]} 3. Bb5 {[%emt 0:00:04]} Nd4 {[%emt 0:00:20]} 4. Bc4 {[%emt 0:00:20]} g6 {[%emt 0:01:25]} 5. Nf3 {[%emt 0:02:24]} Bg7 {[%emt 0:00:44]} 6. Nxd4 {[%emt 0:00:27]} cxd4 {[%emt 0:00:24]} 7. Qf3 {[%emt 0:00:19]} e6 {[%emt 0:01:11]} 8. Nb5 {[%emt 0:00:20]} d6 {[%emt 0:08:07]} 9. Qa3 {[%emt 0:04:17]} Ke7 {[%emt 0:05:30]} 10. c3 {[%emt 0:10:40]} e5 {[%emt 0:05:13]} 11. cxd4 {[%emt 0:12:46]} exd4 {[%emt 0:00:59]} 12. Qd3 {[%emt 0:07:53]} Qb6 {[%emt 0:01:15]} 13. O-O {[%emt 0:13:09]} Be6 {[%emt 0:03:27]} 14. b3 {[%emt 0:01:06]} a6 {[%emt 0:01:11]} 15. Na3 {[%emt 0:00:39]} Nf6 {[%emt 0:06:41]} 16. Bxe6 {[%emt 0:03:48]} fxe6 {[%emt 0:05:57]} 17. Nc4 {[%emt 0:00:05]} Qc6 {[%emt 0:03:08]} 18. e5 {[%emt 0:03:00]} Nd7 {[%emt 0:05:43]} 19. f4 {[%emt 0:12:07]} Qd5 {[%emt 0:07:41]} 20. Nxd6 {[%emt 0:02:44]} Nc5 {[%emt 0:03:56]} 21. Qg3 {[%emt 0:01:11]} Raf8 {[%emt 0:03:11]} 22. Ba3 {[%emt 0:02:39]} b6 {[%emt 0:18:17]} 23. Rac1 {[%emt 0:00:17]} Rxf4 {[%emt 0:05:31]} 24. Qxf4 {[%emt 0:02:34]} Bxe5 {[%emt 0:00:37]} 25. Qf7+ {[%emt 0:02:57]} Kxd6 {[%emt 0:00:14]} 26. b4 {[%emt 0:00:47]} Nd7 {[%emt 0:01:14]} 27. b5+ {[%emt 0:02:29]} Nc5 {[%emt 0:00:12]} 28. Qa7 {[%emt 0:00:47]} 1-0

[Event "AUT Bundesliga Women 2021-22"]
[Site "Austria"]
[Date "2022.03.26"]
[Round "6.7"]
[White "Krassnitzer, Julia"]
[Black "Hrescak, Ivana"]
[Result "1/2-1/2"]
[ECO "B51"]
[WhiteElo "1793"]
[BlackElo "2161"]
[Annotator "NA"]
[PlyCount "60"]
[EventDate "2021.11.06"]
[EventType "team-tourn"]
[EventCountry "AUT"]
[SourceTitle "playchess.com"]
[Source "ChessBase"]
[SourceQuality "1"]
[TimeControl "40/5400+30:1800+30"]

1. e4 {[%emt 0:00:03]} c5 {[%emt 0:00:06]} 2. Nf3 {[%emt 0:00:04]} d6 {[%emt 0:00:10]} 3. Bb5+ {[%emt 0:00:15]} Nd7 {[%emt 0:00:46]} 4. c3 {[%emt 0:04:20]} a6 {[%emt 0:04:04]} 5. Ba4 {[%emt 0:04:57]} e6 {[%emt 0:03:48]} 6. O-O {[%emt 0:00:28]} Ngf6 {[%emt 0:05:12]} 7. Re1 {[%emt 0:02:18]} Be7 {[%emt 0:01:03]} 8. d4 {[%emt 0:00:21]} b5 {[%emt 0:03:12]} 9. Bc2 {[%emt 0:00:09]} Bb7 {[%emt 0:00:16]} 10. b3 {[%emt 0:12:56]} Rc8 {[%emt 0:03:38]} 11. a4 {[%emt 0:07:18]} cxd4 {[%emt 0:03:45]} 12. axb5 {[%emt 0:07:22]} axb5 {[%emt 0:10:56]} 13. Nxd4 {[%emt 0:04:49]} Nc5 {[%emt 0:03:01]} 14. f3 {[%emt 0:07:57]} Qb6 {[%emt 0:01:58]} 15. Be3 {[%emt 0:00:30]} b4 {[%emt 0:00:24]} 16. c4 {[%emt 0:05:53]} O-O {[%emt 0:01:32]} 17. Qd2 {[%emt 0:03:02]} Ra8 {[%emt 0:05:40]} 18. Rxa8 {[%emt 0:03:06]} Rxa8 {[%emt 0:00:13]} 19. Nb5 {[%emt 0:00:43]} d5 {[%emt 0:23:51]} 20. exd5 {[%emt 0:01:57]} exd5 {[%emt 0:00:08]} 21. Bd4 {[%emt 0:02:43]} Bf8 {[%emt 0:04:06]} 22. Qxb4 {[%emt 0:06:36]} Rd8 {[%emt 0:03:27]} 23. Qc3 {[%emt 0:03:10]} dxc4 {[%emt 0:02:25]} 24. bxc4 {[%emt 0:01:30]} Ba6 {[%emt 0:07:01]} 25. N1a3 {[%emt 0:01:12]} Qc6 {[%emt 0:04:19]} 26. Bxf6 {[%emt 0:06:06]} Qxf6 {[%emt 0:00:15]} 27. Qxf6 {[%emt 0:00:34]} gxf6 {[%emt 0:00:01]} 28. Rb1 {[%emt 0:03:24]} Rd2 {[%emt 0:01:46]} 29. Rd1 {[%emt 0:01:49]} Rxd1+ {[%emt 0:00:26]} 30. Bxd1 {[%emt 0:00:48]} Bxb5 {[%emt 0:02:24]} 1/2-1/2

[Event "AUT Bundesliga Women 2021-22"]
[Site "Austria"]
[Date "2022.03.26"]
[Round "6.8"]
[White "Trippold, Denise"]
[Black "Krassnitzer, Maria"]
[Result "1-0"]
[ECO "A48"]
[WhiteElo "2068"]
[BlackElo "1654"]
[Annotator "NA"]
[PlyCount "65"]
[EventDate "2021.11.06"]
[EventType "team-tourn"]
[EventCountry "AUT"]
[SourceTitle "playchess.com"]
[Source "ChessBase"]
[SourceQuality "1"]
[TimeControl "40/5400+30:1800+30"]

1. d4 {[%emt 0:00:06]} Nf6 {[%emt 0:00:04]} 2. Nf3 {[%emt 0:00:06]} g6 {[%emt 0:00:11]} 3. c4 {[%emt 0:00:07]} Bg7 {[%emt 0:00:05]} 4. Nc3 {[%emt 0:00:08]} d6 {[%emt 0:00:14]} 5. e4 {[%emt 0:00:08]} O-O {[%emt 0:00:08]} 6. h3 {[%emt 0:00:13]} c5 {[%emt 0:02:31]} 7. d5 {[%emt 0:00:15]} e6 {[%emt 0:01:11]} 8. Bd3 {[%emt 0:00:35]} a6 {[%emt 0:01:54]} 9. a4 {[%emt 0:23:27]} h6 {[%emt 0:10:29]} 10. Be3 {[%emt 0:02:47]} e5 {[%emt 0:04:48]} 11. Nd2 {[%emt 0:02:18]} Nh5 {[%emt 0:06:11]} 12. g3 {[%emt 0:00:49]} Nf6 {[%emt 0:06:46]} 13. g4 {[%emt 0:04:50]} g5 {[%emt 0:00:51]} 14. Nf1 {[%emt 0:07:02]} a5 {[%emt 0:12:21]} 15. Ng3 {[%emt 0:01:33]} Na6 {[%emt 0:04:34]} 16. Qd2 {[%emt 0:07:27]} Nb4 {[%emt 0:03:23]} 17. O-O-O {[%emt 0:00:20]} Nd7 {[%emt 0:07:33]} 18. h4 {[%emt 0:10:57]} Nxd3+ {[%emt 0:04:29]} 19. Qxd3 {[%emt 0:00:08]} Nf6 {[%emt 0:01:17]} 20. hxg5 {[%emt 0:19:10]} Nxg4 {[%emt 0:05:06]} 21. Rdg1 {[%emt 0:04:41]} hxg5 {[%emt 0:03:06]} 22. Nd1 {[%emt 0:03:01]} f6 {[%emt 0:03:17]} 23. f3 {[%emt 0:01:09]} Nh6 {[%emt 0:01:07]} 24. Qd2 {[%emt 0:02:21]} Bd7 {[%emt 0:13:31]} 25. Nh5 {[%emt 0:01:26]} Nf7 {[%emt 0:00:54]} 26. b3 {[%emt 0:01:30]} b6 {[%emt 0:00:52]} 27. Nf2 {[%emt 0:03:01]} Qe7 {[%emt 0:01:46]} 28. Kb2 {[%emt 0:03:01]} Nh6 {[%emt 0:02:36]} 29. Nxg7 {[%emt 0:00:41]} Kxg7 {[%emt 0:00:30]} 30. Bxg5 {[%emt 0:00:38]} fxg5 {[%emt 0:00:34]} 31. Rxg5+ {[%emt 0:00:01]} Kh7 {[%emt 0:01:08]} 32. Rxh6+ {[%emt 0:01:21]} Kxh6 {[%emt 0:00:45]} 33. Rxe5+ {[%emt 0:00:01]} 1-0

[Event "AUT Bundesliga Women 2021-22"]
[Site "Austria"]
[Date "2022.03.26"]
[Round "6.9"]
[White "Motycakova, Monika"]
[Black "Schnegg, Anna-Lena"]
[Result "1-0"]
[ECO "B07"]
[WhiteElo "2102"]
[BlackElo "2177"]
[Annotator "ChessBase"]
[PlyCount "107"]
[EventDate "2021.11.06"]
[EventType "team-tourn"]
[EventCountry "AUT"]
[SourceTitle "playchess.com"]
[Source "ChessBase"]
[SourceQuality "1"]
[TimeControl "40/5400+30:1800+30"]

1. e4 {[%emt 0:00:03]} d6 {[%emt 0:00:09]} 2. d4 {[%emt 0:00:06]} Nf6 {[%emt 0:00:08]} 3. Nc3 {[%emt 0:00:19]} c6 {[%emt 0:00:12]} 4. f4 {[%emt 0:04:48]} Qa5 {[%emt 0:01:34]} 5. e5 {[%emt 0:06:15]} Ne4 {[%emt 0:10:22]} 6. Bd3 {[%emt 0:07:20]} Nxc3 {[%emt 0:02:29]} 7. Qd2 {[%emt 0:00:06]} c5 {[%emt 0:09:55]} 8. bxc3 {[%emt 0:01:51]} dxe5 {[%emt 0:01:22]} 9. fxe5 {[%emt 0:01:55]} Nc6 {[%emt 0:01:44]} 10. Ne2 {[%emt 0:10:33]} Be6 {[%emt 0:08:10]} 11. O-O {[%emt 0:12:55]} cxd4 {[%emt 0:09:13]} 12. cxd4 {[%emt 0:04:26]} Qxd2 {[%emt 0:01:49]} 13. Bxd2 {[%emt 0:00:05]} O-O-O {[%emt 0:07:48]} 14. Be3 {[%emt 0:04:37]} g5 {[%emt 0:11:46]} 15. Bf5 {[%emt 0:05:29]} Bxf5 {[%emt 0:07:01]} 16. Rxf5 {[%emt 0:00:06]} f6 {[%emt 0:01:49]} 17. e6 {[%emt 0:02:53]} Rd6 {[%emt 0:07:44]} 18. d5 {[%emt 0:22:45]} Ne5 {[%emt 0:01:04]} 19. c4 {[%emt 0:04:20]} b5 {[%emt 0:05:22]} 20. cxb5 {[%emt 0:05:12]} Rxd5 {[%emt 0:00:37]} 21. Bxa7 {[%emt 0:00:18]} Rxb5 {[%emt 0:01:34]} 22. a4 {[%emt 0:00:41]} Rb2 {[%emt 0:03:40]} 23. Nd4 {[%emt 0:00:47]} Bh6 {[%emt 0:02:03]} 24. Bc5 {[%emt 0:01:04]} g4 {[%emt 0:03:35]} 25. Nb5 {[%emt 0:01:53]} Rd8 {[%emt 0:00:28]} 26. Rf2 {[%emt 0:01:54]} Rxf2 {[%emt 0:01:00]} 27. Bxf2 {[%emt 0:00:04]} Rd5 {[%emt 0:00:49]} 28. Kf1 {[%emt 0:00:47]} Nd3 {[%emt 0:00:30]} 29. Bg3 {[%emt 0:00:28]} Nc5 {[%emt 0:00:31]} 30. Nc7 {[%emt 0:00:41]} Rd3 {[%emt 0:00:27]} 31. Nb5 {[%emt 0:00:45]} Nxe6 {[%emt 0:00:32]} 32. a5 {[%emt 0:00:03]} Nc5 {[%emt 0:00:30]} 33. a6 {[%emt 0:00:21]} Rd8 {[%emt 0:00:32]} 34. a7 {[%emt 0:00:40]} Kb7 {[%emt 0:00:19]} 35. Nc7 {[%emt 0:00:22]} Ra8 {[%emt 0:00:40]} 36. Rb1+ {[%emt 0:00:42]} Kxa7 {[%emt 0:00:30]} 37. Ra1+ {[%emt 0:00:06]} Kb7 {[%emt 0:00:28]} 38. Nxa8 {[%emt 0:01:06]} Ne4 {[%emt 0:00:32]} 39. Ra4 {[%emt 0:00:30]} Nxg3+ {[%emt 0:00:30]} 40. hxg3 {[%emt 0:00:04]} f5 {[%emt 0:00:29]} 41. Ra5 {[%emt 0:15:22]} e6 {[%emt 0:06:48]} 42. Re5 {[%emt 0:08:04]} Kxa8 {[%emt 0:00:39]} 43. Rxe6 {[%emt 0:00:04]} Bc1 {[%emt 0:03:13]} 44. Rf6 {[%emt 0:02:19]} Kb7 {[%emt 0:00:37]} 45. Ke2 {[%emt 0:01:00]} h6 {[%emt 0:02:38]} 46. Kd3 {[%emt 0:02:55]} Kc7 {[%emt 0:00:41]} 47. Kc4 {[%emt 0:00:22]} Bg5 {[%emt 0:00:41]} 48. Rxf5 {[%emt 0:00:25]} Kd6 {[%emt 0:00:07]} 49. Kd4 {[%emt 0:00:37]} Ke6 {[%emt 0:00:31]} 50. Ke4 {[%emt 0:00:04]} Bd2 {[%emt 0:00:59]} 51. Rf8 {[%emt 0:02:32]} Bc1 {[%emt 0:03:20]} 52. Rg8 {[%emt 0:00:20]} Bg5 {[%emt 0:00:16]} 53. Rg6+ {[%emt 0:00:15]} Bf6 {[%emt 0:00:27]} 54. Rxh6 {[%emt 0:00:39]} 1-0